[Event "1st Caplin Menchik Memorial 2022"]
[Site "London"]
[Date "2022.06.20"]
[Round "3.1"]
[White "Hunt, Harriet V"]
[Black "Yao, Lan"]
[Result "0-1"]
[ECO "B48"]
[WhiteElo "2395"]
[BlackElo "2276"]
[Annotator "TA"]
[PlyCount "70"]
[EventDate "2022.06.21"]
[EventType "tourn"]
[EventCountry "ENG"]
[SourceTitle "playchess.com"]
[Source "ChessBase"]
[SourceQuality "1"]
[TimeControl "5400+30"]

{[%evp 17,70,47,63,43,54,3,0,0,8,-20,-12,-15,-8,-14,-9,-14,0,-49,-33,-40,-27,-39,0,0,-8,-24,-18,-19,-22,-52,-32,-31,-37,-32,-38,-72,-68,-79,-75,-114,-115,-168,-158,-226,-225,-230,-233,-243,-192,-243,-240,-587,-579,-29974,-11564]} 1. e4 {[%emt 0:07:47]} c5 {[%emt 0:00:04]} 2. Nf3 {[%emt 0:00:21]} e6 {[%emt 0:00:04]} 3. d4 {[%emt 0:00:12]} cxd4 {[%emt 0:00:04]} 4. Nxd4 {[%emt 0:00:05]} Nc6 {[%emt 0:00:05]} 5. Nc3 {[%emt 0:00:19]} Qc7 {[%emt 0:00:04]} 6. Be3 {[%emt 0:00:06]} a6 {[%emt 0:00:06]} 7. Bd3 {[%emt 0:00:12]} Nf6 {[%emt 0:00:09]} 8. O-O {[%emt 0:00:40]} Nxd4 {[%emt 0:00:03]} 9. Bxd4 {[%emt 0:00:13]} Bc5 {[%emt 0:00:07]} 10. Be2 {[%emt 0:02:18] Black must now prevent e5. B48: Sicilian: Taimanov: 5 Nc3 Qc7 6 Be3 a6 without Be2.} (10. Bxf6 $5 gxf6 11. Qg4 $14) 10... d6 {[%emt 0:00:39] Inhibits e5. 10...e5 is vanishing.} 11. Kh1 {[%emt 0:08:26]} (11. Bxf6 $14 gxf6 12. Qd2) 11... e5 $11 {[%emt 0:05:08]} 12. Bxc5 {[%emt 0:00:14] The position is equal.} Qxc5 {[%emt 0:01:07]} 13. Qd3 {[%emt 0:05:14]} Be6 {[%emt 0:02:23]} 14. Rad1 {[%emt 0:03:51]} Rd8 {[%emt 0:04:33]} 15. f4 {[%emt 0:06:59]} exf4 {[%emt 0:01:36]} 16. Rxf4 {[%emt 0:00:09]} Qe5 {[%emt 0:09:50] [#]} 17. Rdf1 $146 {[%emt 0:10:30]} (17. Rff1 $11 {might be stronger.}) ({Predecessor:} 17. Rf2 O-O 18. Bf3 Rd7 19. Rfd2 Qg5 20. Qd4 Rfd8 21. a4 h6 22. Qf2 {1-0 (47) Fressinet,L (2575)-Landenbergue,C (2401) Lausanne 2001}) 17... O-O {[%emt 0:05:06]} 18. Qg3 {[%emt 0:09:58]} Kh8 {[%emt 0:21:07]} 19. a4 {[%emt 0:06:24]} Nh5 {[%emt 0:09:11]} 20. Bxh5 {[%emt 0:00:14]} Qxh5 {[%emt 0:00:04]} 21. Qe3 {[%emt 0:13:29]} Qe5 {[%emt 0:04:10]} 22. Qb6 {[%emt 0:01:30] Prevents b5.} Rd7 {[%emt 0:00:55]} 23. Qf2 {[%emt 0:00:52]} Rc8 {[%emt 0:03:03]} 24. Rf3 {[%emt 0:02:13]} b5 {[%emt 0:06:31]} 25. axb5 {[%emt 0:00:03]} axb5 {[%emt 0:00:01][%cal Ba6b5,Bb5b4][%mdl 32]} 26. Re1 {[%emt 0:04:40]} h6 {[%emt 0:14:13]} 27. Rd3 {[%emt 0:09:04]} Rc4 {[%emt 0:03:42]} 28. Rde3 {[%emt 0:02:00] [#]} Rdc7 $1 {[%emt 0:02:46] Threatens to win with ...b4. Black is more active.} 29. R3e2 {[%emt 0:00:07]} (29. R1e2 $17 {was worth a try.}) 29... b4 $19 {[%emt 0:01:57]} 30. Na4 {[%emt 0:01:03]} (30. Na2 $17) 30... Bg4 {[%emt 0:01:07]} 31. Rd2 {[%emt 0:00:40]} Rxe4 {[%emt 0:00:52]} 32. Rxe4 {[%emt 0:00:52]} Qxe4 {[%emt 0:00:02]} 33. b3 {[%emt 0:00:27]} (33. Rd4 $142 Qxc2 34. Qxc2 Rxc2 35. Kg1) 33... Re7 {[%emt 0:02:13] ( -> ...Qe1+)} 34. h3 $2 {[%emt 0:01:30]} (34. h4) 34... Bxh3 $1 {[%emt 0:01:10]} 35. Rxd6 {[%emt 0:00:17] [#]} Bxg2+ $1 {[%emt 0:01:17][%mdl 512] Weighted Error Value: White=0.63/Black=0.04 (flawless)} 0-1

[Event "1st Caplin Menchik Memorial 2022"]
[Site "London"]
[Date "2022.06.20"]
[Round "3.2"]
[White "Vidic, Teja"]
[Black "Varney, Zoe"]
[Result "0-1"]
[ECO "C89"]
[WhiteElo "2168"]
[BlackElo "2046"]
[Annotator "TA"]
[PlyCount "68"]
[EventDate "2022.06.21"]
[EventType "tourn"]
[EventCountry "ENG"]
[SourceTitle "playchess.com"]
[Source "ChessBase"]
[SourceQuality "1"]
[TimeControl "5400+30"]

{[%evp 28,68,50,20,40,0,6,5,6,0,5,-19,0,0,0,-150,-47,-37,20,-213,-212,-197,-209,-295,-281,-1227,-722,-1256,-971,-943,-927,-897,-710,-29991,-29972,-6604,-6403,-29994,-29995,-29995,-29996,-29996,-29997]} 1. e4 {[%emt 0:00:03]} e5 {[%emt 0:03:43]} 2. Nf3 {[%emt 0:00:10]} Nc6 {[%emt 0:00:04]} 3. Bb5 {[%emt 0:00:14]} a6 {[%emt 0:00:04]} 4. Ba4 {[%emt 0:00:07]} Nf6 {[%emt 0:00:11]} 5. O-O {[%emt 0:00:08]} Be7 {[%emt 0:00:11]} 6. Re1 {[%emt 0:00:17]} b5 {[%emt 0:00:05]} 7. Bb3 {[%emt 0:00:07]} O-O {[%emt 0:00:06]} 8. c3 {[%emt 0:00:14]} d5 {[%emt 0:00:04]} 9. exd5 {[%emt 0:00:11]} Nxd5 {[%emt 0:00:06]} 10. Nxe5 {[%emt 0:00:13]} Nxe5 {[%emt 0:00:05]} 11. Rxe5 {[%emt 0:00:06]} c6 {[%emt 0:00:04]} 12. d4 {[%emt 0:00:13]} Bd6 {[%emt 0:00:05]} 13. Re1 {[%emt 0:00:05]} Qh4 {[%emt 0:00:05]} 14. g3 {[%emt 0:00:16]} Qh3 {[%emt 0:00:05]} 15. Be3 {[%emt 0:00:32] 15.Re4 is the fancy move.} (15. Bxd5 $5 cxd5 16. Qf3 $14) 15... Ra7 {[%emt 0:00:20] C89: Closed Ruy Lopez: Marshall Attack.} 16. Qd3 {[%emt 0:01:58]} Re7 {[%emt 0:05:02]} 17. Nd2 {[%emt 0:01:10]} Rfe8 $1 {[%emt 0:02:02][%cal Od6g3] ...Bxg3! is the strong threat. The position is equal.} 18. Bxd5 {[%emt 0:01:42]} cxd5 $40 {[%emt 0:00:17][%mdl 128] Black mounts an attack.} 19. a4 {[%emt 0:01:20]} f5 {[%emt 0:07:18][%cal Of5f4][%mdl 1024] Threatens to win with ...f4! Black has compensation.} 20. Qf1 {[%emt 0:17:14]} (20. axb5 f4 21. bxa6 fxe3 22. Rxe3 Rxe3 23. fxe3 Bxg3 $1 $17) 20... Qh5 {[%emt 0:04:15][%cal Of5f4] [#] And now ...f4! would win.} 21. Qe2 $146 {[%emt 0:01:22]} (21. axb5 $11 axb5 22. Bf4 (22. Qxb5 f4 $15) 22... Bxf4 23. Rxe7 Rxe7 24. gxf4) ({Predecessor:} 21. axb5 axb5 22. Qg2 f4 23. gxf4 Bxf4 24. Nf1 Bh3 25. Ng3 Bxg3 26. Qxg3 Re6 27. Kh1 {0-1 (33) Habibi,A (1986)-Sousa,A (2390) Tornelo INT 2021}) 21... Qg6 {[%emt 0:13:30]} (21... Qxe2 $17 22. Rxe2 g5) 22. Qd3 $15 {[%emt 0:04:26]} ({Don't play} 22. axb5 f4 23. bxa6 fxe3 24. fxe3 Bb8 $17) 22... Qh5 {[%emt 0:17:53]} ({Black should try} 22... bxa4 $15 23. Nf3 (23. Rxa4 Qg4 $17) 23... Re4) 23. Nf1 $2 {[%emt 0:11:24] This move loses the game for White.} (23. axb5 $11 {and White stays safe.} f4 {[#]} 24. bxa6 $1) 23... f4 $1 $19 {[%emt 0:03:15]} 24. gxf4 {[%emt 0:04:37]} Bxf4 {[%emt 0:02:12]} 25. Ng3 {[%emt 0:11:27]} (25. axb5 $142 Bh3 26. Bd2) 25... Bxg3 {[%emt 0:07:30]} 26. hxg3 {[%emt 0:01:27]} (26. fxg3 Qf3 27. Qf1 Qxf1+ 28. Kxf1 Rxe3 29. Rxe3 Rxe3 30. Kf2) 26... Bf5 {[%emt 0:01:23]} 27. Qf1 {[%emt 0:10:25]} Bh3 {[%emt 0:02:01]} 28. Qe2 {[%emt 0:00:56]} Bg4 {[%emt 0:00:20]} 29. f3 {[%emt 0:01:48]} Bxf3 {[%emt 0:05:49] ( -> ...Qh1+)} 30. Qf1 {[%emt 0:00:05]} Rxe3 {[%emt 0:00:53]} 31. Rxe3 {[%emt 0:00:06]} Rxe3 {[%emt 0:00:06]} 32. axb5 {[%emt 0:00:02]} Qh1+ {[%emt 0:01:03] Black mates.} 33. Kf2 {[%emt 0:00:05]} Re2+ {[%emt 0:00:11]} 34. Qxe2 {[%emt 0:00:23]} Qg2+ {[%emt 0:00:04] Weighted Error Value: White=1.46/Black=0.65} 0-1

[Event "1st Caplin Menchik Memorial 2022"]
[Site "London"]
[Date "2022.06.20"]
[Round "3.3"]
[White "Koubova, Anna Marie"]
[Black "Hryshchenko, Kamila"]
[Result "0-1"]
[ECO "B06"]
[WhiteElo "2115"]
[BlackElo "2037"]
[Annotator "TA"]
[PlyCount "56"]
[EventDate "2022.06.21"]
[EventType "tourn"]
[EventCountry "ENG"]
[SourceTitle "playchess.com"]
[Source "ChessBase"]
[SourceQuality "1"]
[TimeControl "5400+30"]

{[%evp 9,56,27,42,43,40,30,34,38,54,33,41,7,16,6,104,86,99,74,77,23,116,0,0,0,4,0,41,65,34,56,158,86,89,86,83,25,37,0,0,-10,-6,-77,-79,-76,0,-153,-151,-850,-825]} 1. d4 {[%emt 0:00:06]} g6 {[%emt 0:03:00]} 2. e4 {[%emt 0:01:35]} Bg7 {[%emt 0:00:16]} 3. Nc3 {[%emt 0:00:38]} d6 {[%emt 0:00:08]} 4. g3 {[%emt 0:00:18]} Nc6 {[%emt 0:01:46]} 5. Nge2 {[%emt 0:14:23]} Bg4 {[%emt 0:04:19][%cal Oc6d4]} 6. Qd3 {[%emt 0:00:38] B06: Modern Defence.} a6 {[%emt 0:07:20]} 7. a3 {[%emt 0:02:04] Against Nb4} e5 {[%emt 0:02:11][%cal Re5d4]} 8. d5 {[%emt 0:05:58] White is slightly better.} Nce7 {[%emt 0:01:06] [#]} 9. f3 $146 {[%emt 0:01:25]} ({Predecessor:} 9. Bg2 h5 10. Be3 Nh6 11. f3 Bd7 12. O-O-O f6 13. Kb1 Nf7 14. Nc1 h4 15. f4 exf4 16. gxf4 {0-1 (46) Pluta,P (1903)-Malinin,Y (2253) Panevezys 2017}) 9... Bd7 {[%emt 0:00:16]} 10. g4 {[%emt 0:03:32]} h5 {[%emt 0:08:06]} 11. g5 {[%emt 0:05:47]} h4 {[%emt 0:03:17]} (11... c6 $1 $11) 12. Be3 {[%emt 0:02:24]} Nc8 {[%emt 0:02:58]} 13. a4 {[%emt 0:06:43]} Nge7 {[%emt 0:05:25]} 14. Rg1 {[%emt 0:09:11]} (14. Nd1 $16) 14... c5 {[%emt 0:04:37]} (14... c6 $11 {keeps the balance.}) 15. dxc6 {[%emt 0:04:10]} ({White should play} 15. Nd1 $16) 15... bxc6 $11 {[%emt 0:00:28]} 16. O-O-O {[%emt 0:02:53]} Qa5 {[%emt 0:10:16]} 17. f4 {[%emt 0:04:06]} Rb8 {[%emt 0:04:09]} (17... Qb4 $5 {[%cal Rc6c5]}) 18. fxe5 {[%emt 0:12:30]} Bxe5 {[%emt 0:00:25]} 19. Bd4 {[%emt 0:01:32]} Rh5 {[%emt 0:09:03]} (19... Bxh2 $14 20. Bxh8 Bxg1) 20. Bh3 {[%emt 0:11:50]} (20. Bxe5 $142 Qxe5 21. Qe3 (21. Qxa6 Rxg5 22. Rxg5 Qxg5+ 23. Kb1 Qe5 $15)) 20... Bxh3 $16 {[%emt 0:07:09]} 21. Qxh3 {[%emt 0:01:32]} Nb6 {[%emt 0:12:01]} 22. b3 {[%emt 0:05:20]} (22. Bxe5 $16 Qxe5 23. Rg4) 22... Bxd4 {[%emt 0:02:01]} 23. Nxd4 {[%emt 0:00:24]} c5 $1 {[%emt 0:03:41]} 24. Nde2 {[%emt 0:01:54] [#] aiming for Nf4.} c4 {[%emt 0:00:17]} 25. Nd5 {[%emt 0:00:24] Against Qb4} (25. Rg4 $11) 25... Nbxd5 $17 {[%emt 0:00:25]} 26. exd5 {[%emt 0:00:07]} Qb4 {[%emt 0:06:10]} ({Much weaker is} 26... Nxd5 27. bxc4 Ne7 28. Qe3 $11 (28. Qd3 Rxg5 29. Qxd6 Qe5 $11)) (26... cxb3 $17 {...b2+ is the strong threat.} 27. cxb3 Nf5) 27. Qc3 {[%emt 0:01:29]} (27. Kb2 $11) 27... cxb3 {[%emt 0:00:19]} 28. cxb3 {[%emt 0:00:50] [#]} (28. Rd4 $17 Qxc3 29. Nxc3) 28... Rc8 {[%emt 0:00:16] Weighted Error Value: White=0.67/Black=0.29 (precise)} 0-1

[Event "1st Caplin Menchik Memorial 2022"]
[Site "London"]
[Date "2022.06.20"]
[Round "3.4"]
[White "Dworakowska, Joanna"]
[Black "Toma, Katarzyna"]
[Result "1/2-1/2"]
[ECO "B33"]
[WhiteElo "2321"]
[BlackElo "2304"]
[Annotator "TA"]
[PlyCount "63"]
[EventDate "2022.06.21"]
[EventType "tourn"]
[EventCountry "ENG"]
[SourceTitle "playchess.com"]
[Source "ChessBase"]
[SourceQuality "1"]
[TimeControl "5400+30"]

{[%evp 20,63,18,8,22,7,16,10,31,18,21,27,17,12,35,12,41,15,49,0,13,22,61,42,70,70,70,56,70,70,70,63,70,56,56,56,56,49,60,55,63,63,83,56,59,47]} 1. e4 {[%emt 0:00:04]} c5 {[%emt 0:00:07]} 2. Nf3 {[%emt 0:00:16][%cal Bg1f3,Bf3d4,Bd4b5][%mdl 32]} Nc6 {[%emt 0:00:20]} 3. d4 {[%emt 0:00:09]} cxd4 {[%emt 0:00:00]} 4. Nxd4 {[%emt 0:00:02]} Nf6 {[%emt 0:00:05]} 5. Nc3 {[%emt 0:00:05]} e5 {[%emt 0:00:06]} 6. Ndb5 {[%emt 0:00:11]} d6 {[%emt 0:00:06]} 7. Nd5 {[%emt 0:00:27]} Nxd5 {[%emt 0:00:11]} 8. exd5 {[%emt 0:00:03]} Ne7 {[%emt 0:00:11]} 9. c3 {[%emt 0:00:54]} Nf5 {[%emt 0:00:26]} 10. a4 {[%emt 0:00:49]} g6 {[%emt 0:00:44]} 11. Bd3 {[%emt 0:00:33]} Bg7 {[%emt 0:00:42] B33: Sicilian: Pelikan and Sveshnikov Variations.} 12. O-O {[%emt 0:00:22][%cal Bh1f1,Bf1e1,Be1e4][%mdl 32]} O-O {[%emt 0:00:31]} 13. Qb3 {[%emt 0:02:50]} Re8 {[%emt 0:02:14] The position is equal.} 14. Qb4 {[%emt 0:11:39]} Bd7 {[%emt 0:02:03]} 15. Re1 {[%emt 0:16:40]} (15. Nxd6 $2 Nxd6 16. Re1 (16. Qxd6 $2 Bf8 $19) 16... Qb6 $19) 15... b6 {[%emt 0:12:52] [#]} 16. Bd2 $146 {[%emt 0:18:17]} ({Avoid the trap} 16. Nxd6 $2 Nxd6 17. a5 (17. Qxd6 $2 Bf8 $19) 17... Nb7 18. axb6 Bf8 $19) ({Predecessor:} 16. Bxf5 Bxf5 17. Be3 a6 18. Na3 Rb8 19. Red1 Qc7 20. Nc4 a5 21. Qb3 Bd7 22. Na3 {½-½ (40) Poleshchuk,N (2424)-Nekhaev,A (2528) ICCF email 2009}) 16... a5 {[%emt 0:12:03]} 17. Qb3 {[%emt 0:05:28]} Rb8 {[%emt 0:03:35]} (17... Bxb5 $5 18. Bxb5 (18. Qxb5 Bh6 $11) 18... Re7 $14) 18. Re4 {[%emt 0:03:46]} ({Much worse is} 18. g4 Nh4 19. Be2 Bxb5 20. Qxb5 e4 $15) 18... Rf8 {[%emt 0:05:53]} 19. Rae1 {[%emt 0:02:25]} (19. Re2 $14 {is more appropriate.}) 19... Bxb5 {[%emt 0:06:34]} 20. Bxb5 {[%emt 0:05:26]} Ne7 {[%emt 0:00:14]} 21. R4e2 {[%emt 0:08:40] White is much more active. The black rooks are badly placed.} f5 {[%emt 0:01:32]} 22. f4 {[%emt 0:00:59][%cal Rf4e5]} e4 {[%emt 0:00:42]} 23. Be3 {[%emt 0:00:44]} Kh8 {[%emt 0:01:20][%cal Og6g5]} 24. g3 {[%emt 0:02:34]} Ng8 {[%emt 0:01:50][%cal Be7g8,Bg8f6,Bf6d7,Bd7c5][%mdl 32]} 25. Rg2 {[%emt 0:00:22]} Rf7 {[%emt 0:03:09]} 26. Kf1 {[%emt 0:02:42]} Nf6 {[%emt 0:14:36]} 27. h3 {[%emt 0:00:36]} Nd7 {[%emt 0:01:32]} 28. Qc2 {[%emt 0:02:01]} Rc8 {[%emt 0:02:55]} 29. Kg1 {[%emt 0:00:31]} Nc5 {[%emt 0:01:03]} 30. Kh2 {[%emt 0:00:27]} Re7 {[%emt 0:06:50]} 31. Qd1 {[%emt 0:00:38]} Qf8 {[%emt 0:05:56]} 32. Reg1 {[%emt 0:01:44] Weighted Error Value: White=0.11 (very precise) /Black=0.11 (very precise)} 1/2-1/2

[Event "1st Caplin Menchik Memorial 2022"]
[Site "London"]
[Date "2022.06.20"]
[Round "3.5"]
[White "Schulze, Lara"]
[Black "Arakhamia-Grant, Ketevan"]
[Result "1/2-1/2"]
[ECO "B30"]
[WhiteElo "2303"]
[BlackElo "2354"]
[Annotator "TA"]
[PlyCount "55"]
[EventDate "2022.06.21"]
[EventType "tourn"]
[EventCountry "ENG"]
[SourceTitle "playchess.com"]
[Source "ChessBase"]
[SourceQuality "1"]
[TimeControl "5400+30"]

{[%evp 16,55,21,21,39,40,37,31,50,33,34,33,107,95,104,82,91,59,44,45,41,34,43,29,37,25,24,16,25,16,30,31,31,12,13,0,0,0,0,0,0,0]} 1. e4 {[%emt 0:00:03]} c5 {[%emt 0:03:01]} 2. Nf3 {[%emt 0:00:08]} Nc6 {[%emt 0:00:12]} 3. Bb5 {[%emt 0:00:08]} e6 {[%emt 0:01:31]} 4. O-O {[%emt 0:00:20]} Nge7 {[%emt 0:00:22][%cal Bg8e7,Be7d5,Bd5b4][%mdl 32]} 5. Re1 {[%emt 0:00:22]} a6 {[%emt 0:02:24]} 6. Bf1 {[%emt 0:00:27]} d5 {[%emt 0:02:29]} 7. exd5 {[%emt 0:00:35]} Nxd5 {[%emt 0:00:40]} 8. d4 {[%emt 0:00:37]} cxd4 {[%emt 0:19:32]} 9. Nxd4 {[%emt 0:03:19]} Ndb4 {[%emt 0:02:54] Recently 9...Bd7 got a lot of attention. B30: Sicilian: 2...Nc6 3 Bb5, lines without ...g6.} 10. Nxc6 {[%emt 0:07:08][%csl Gc6][%cal Rd1d8] [#]} Qxd1 {[%emt 0:10:04]} 11. Rxd1 {[%emt 0:00:37][%csl Gc6][%cal Rd1d8]} Nxc6 {[%emt 0:01:30] White is slightly better.} 12. Nd2 {[%emt 0:04:42] [#]} Be7 $146 {[%emt 0:03:17]} ({Predecessor:} 12... e5 13. Nc4 Be6 14. Be3 Be7 15. Nd6+ Bxd6 16. Rxd6 O-O 17. Bb6 Rac8 18. c4 Ne7 {½-½ (55) Varga,Z (2442)-Mester,G (2389) Hungary 2017}) 13. Nc4 {[%emt 0:02:20]} O-O {[%emt 0:01:42]} ({Black should play} 13... e5 $14) 14. Bf4 $16 {[%emt 0:12:43]} Bc5 {[%emt 0:06:28] Prevents Nb6.} 15. a4 {[%emt 0:12:57]} Nb4 {[%emt 0:03:40]} 16. c3 {[%emt 0:10:03] White is more active.} Nd5 {[%emt 0:00:11]} 17. Bd6 {[%emt 0:00:58]} Bxd6 {[%emt 0:00:28]} 18. Nxd6 {[%emt 0:00:03]} Rd8 {[%emt 0:11:14]} 19. Nxc8 {[%emt 0:00:47]} Raxc8 {[%emt 0:00:19]} 20. g3 {[%emt 0:00:52]} Kf8 {[%emt 0:12:34]} 21. Rd4 {[%emt 0:03:32]} Ke7 {[%emt 0:02:29]} 22. Bg2 {[%emt 0:02:32]} b6 {[%emt 0:16:32]} 23. Rad1 {[%emt 0:13:24][%cal Rg2d5]} Nc7 {[%emt 0:00:00]} 24. Kf1 {[%emt 0:00:12]} a5 {[%emt 0:00:00] The position is equal.} 25. Ke2 {[%emt 0:02:48]} Rxd4 {[%emt 0:00:00]} 26. Rxd4 {[%emt 0:00:07]} Ne8 {[%emt 0:00:00]} 27. Kd3 {[%emt 0:07:48]} Nd6 {[%emt 0:00:00]} 28. h4 {[%emt 0:08:47] Weighted Error Value: White=0.09 (flawless) /Black=0.07 (flawless)} 1/2-1/2

[Event "1st Caplin Menchik Memorial 2022"]
[Site "London"]
[Date "2022.06.21"]
[Round "4.1"]
[White "Yao, Lan"]
[Black "Arakhamia-Grant, Ketevan"]
[Result "1/2-1/2"]
[ECO "B30"]
[WhiteElo "2276"]
[BlackElo "2354"]
[Annotator "TA"]
[PlyCount "106"]
[EventDate "2022.06.21"]
[EventType "tourn"]
[EventCountry "ENG"]
[SourceTitle "playchess.com"]
[Source "ChessBase"]
[SourceQuality "1"]
[TimeControl "5400+30"]

{[%evp 9,106,-5,18,10,11,7,16,0,0,-5,-2,-26,0,1,0,7,5,-12,8,0,39,36,58,-81,-85,-126,-79,-108,-59,-62,-61,-75,-55,-60,-49,-66,-60,-59,-59,-59,-59,-59,-59,-59,-57,-47,-44,-58,-26,-26,-20,-58,-33,-52,-52,-52,-44,-41,-41,-60,0,0,0,-49,-33,-61,-4,-4,0,0,0,0,0,0,0,0,0,0,0,0,0,0,0,0,0,0,0,0,0,0,0,0,0,0,0,0,0,0,0]} 1. e4 {[%emt 0:00:04]} c5 {[%emt 0:02:19]} 2. Nf3 {[%emt 0:00:08]} Nc6 {[%emt 0:00:10]} 3. Bb5 {[%emt 0:00:04]} e5 {[%emt 0:00:16]} 4. Bxc6 {[%emt 0:00:22]} dxc6 {[%emt 0:00:10]} 5. d3 {[%emt 0:00:03]} Qc7 {[%emt 0:03:30]} 6. Nbd2 {[%emt 0:00:58] [#] B30: Sicilian: 2...Nc6 3 Bb5, lines without ...g6.} f6 $146 {[%emt 0:05:27]} ({Predecessor:} 6... Be6 7. O-O Ne7 8. a4 Ng6 9. Ng5 Bd7 10. Nc4 Be7 11. Qh5 h6 12. Nxf7 Kxf7 13. f4 exf4 14. Bxf4 {1-0 (14) Vantika,A (2286)-Svicevic,R (2223) Chess.com INT 2020}) 7. Nc4 {[%emt 0:05:58]} Be6 {[%emt 0:00:36]} 8. Bd2 {[%emt 0:02:31]} O-O-O {[%emt 0:04:20]} 9. Qe2 {[%emt 0:01:24]} Ne7 {[%emt 0:01:58]} 10. a3 {[%emt 0:05:35]} g5 {[%emt 0:02:46][%cal Bg7g5,Bg5g4][%mdl 32]} 11. h4 {[%emt 0:11:59]} g4 {[%emt 0:00:58]} 12. Nh2 {[%emt 0:00:06]} h5 $36 {[%emt 0:00:42][%mdl 2048] Black has good play.} 13. Nf1 {[%emt 0:01:56]} Ng6 {[%emt 0:07:17] Strongly threatening ...Nf4.} 14. g3 {[%emt 0:02:43] Inhibits Nf4.} f5 {[%emt 0:03:14]} 15. Bg5 {[%emt 0:04:10]} Be7 {[%emt 0:03:37] Threatens to win with ...Bxg5.} 16. Bxe7 {[%emt 0:00:48]} (16. exf5 $14 {is the one way to stay ahead.} Bxf5 17. Bxe7 Qxe7 18. Nfd2 (18. Nfe3 Be6 $11)) 16... Nxe7 $17 {[%emt 0:05:40]} 17. Nfd2 {[%emt 0:10:12] [#]} f4 {[%emt 0:02:07]} (17... b5 $142 $1 {[%cal Rb5c4]} 18. Ne3 (18. exf5 $2 Bd5 $17) 18... f4) 18. a4 {[%emt 0:05:14][%cal Ba3a4,Ba4a5][%mdl 32]} Ng6 {[%emt 0:05:49]} (18... b5 $17 19. axb5 cxb5) 19. a5 $15 {[%emt 0:04:00]} Rhg8 {[%emt 0:05:26]} 20. Rg1 {[%emt 0:10:07]} Rdf8 {[%emt 0:04:03]} 21. Rf1 {[%emt 0:01:19]} Kb8 {[%emt 0:02:45]} 22. O-O-O {[%emt 0:02:43]} b5 {[%emt 0:05:00]} 23. axb6 $1 {[%emt 0:00:04]} axb6 {[%emt 0:00:04] White must now prevent ...b5.} 24. Nb3 {[%emt 0:02:21]} Rd8 {[%emt 0:06:56]} 25. Qe1 {[%emt 0:04:01]} Bxc4 {[%emt 0:01:49]} 26. dxc4 {[%emt 0:00:01]} Rxd1+ {[%emt 0:00:10]} 27. Qxd1 {[%emt 0:01:11]} Nf8 {[%emt 0:00:17]} 28. Qe2 {[%emt 0:02:32]} Nd7 {[%emt 0:09:09]} 29. Rd1 {[%emt 0:02:53]} Nf6 {[%emt 0:00:21]} 30. Qd3 {[%emt 0:01:17]} ({Of course not} 30. gxf4 exf4 31. e5 Nd7 $17) 30... Kb7 {[%emt 0:01:38]} 31. c3 {[%emt 0:01:34]} Rg7 {[%emt 0:01:12]} 32. Qe2 {[%emt 0:01:54]} Re7 {[%emt 0:00:52]} (32... Qc8 {is interesting.} 33. Kc2 Qe6 34. Rd8 Rd7) 33. Kc2 {[%emt 0:00:38]} Re6 {[%emt 0:01:29]} 34. Qd3 {[%emt 0:01:50]} Ne8 {[%emt 0:08:25]} ({Black should play} 34... Qf7 $15) 35. Qd7 $11 {[%emt 0:03:32]} Re7 {[%emt 0:02:51][%cal Be6e7,Be7f7,Bf7f2,Bf2f6][%mdl 32]} 36. Qd3 {[%emt 0:00:20]} (36. Qf5 $11 {feels stronger.}) 36... Rf7 {[%emt 0:01:09]} (36... Kc8 {is more complex.} 37. Ra1 Rd7 38. Qe2 Kb7) 37. Nd2 {[%emt 0:02:16]} Nd6 {[%emt 0:01:09]} (37... Rd7 $15 38. Qe2 Rd8) 38. Nb3 {[%emt 0:02:10] [#] The position is equal.} fxg3 $1 {[%emt 0:01:04]} 39. fxg3 {[%emt 0:00:11]} Rf2+ {[%emt 0:00:32]} 40. Kb1 {[%emt 0:02:11]} Rf6 {[%emt 0:00:07]} 41. Nd2 {[%emt 0:00:39]} Qf7 {[%emt 0:00:35]} 42. Kc2 {[%emt 0:00:21]} Qg6 {[%emt 0:01:09]} 43. Qe2 {[%emt 0:02:06]} Rf7 {[%emt 0:00:23]} 44. Rf1 {[%emt 0:01:26]} Rxf1 {[%emt 0:02:04]} 45. Qxf1 {[%emt 0:00:05][%mdl 4096] Endgame KQN-KQN} Qh6 {[%emt 0:00:26]} (45... Nxe4 $2 46. Qd3 $18) 46. Qf2 {[%emt 0:01:06]} Kc7 {[%emt 0:00:09]} 47. Kd3 {[%emt 0:00:19]} Kd7 {[%emt 0:00:26]} 48. Kc2 {[%emt 0:03:00]} Qg6 {[%emt 0:00:43]} 49. Kd3 {[%emt 0:00:28]} Ke7 {[%emt 0:00:13]} 50. b3 {[%emt 0:00:23]} Qh7 {[%emt 0:01:16]} 51. Qe3 {[%emt 0:00:23]} Qg6 {[%emt 0:00:12]} 52. Qf2 {[%emt 0:00:08]} Qg7 {[%emt 0:00:34]} 53. Ke2 {[%emt 0:01:09]} Qg6 {[%emt 0:00:28] Weighted Error Value: White=0.13 (very precise) /Black=0.11 (very precise)} 1/2-1/2